[Event "EYCC Open-U16 2019"]
[Site "Bratislava"]
[Date "2019.08.09"]
[Round "8.2"]
[White "Malovanyi, Yulian"]
[Black "Pogosyan, Stefan"]
[Result "1/2-1/2"]
[ECO "B30"]
[WhiteElo "2204"]
[BlackElo "2334"]
[Annotator "NA"]
[PlyCount "79"]
[EventDate "2019.08.02"]
[EventType "swiss"]
[EventCountry "SVK"]
[SourceTitle "playchess.com"]
[Source "ChessBase"]
[SourceQuality "1"]
[TimeControl "40/5400+30:1800+30"]

1. e4 {[%emt 0:00:00]} c5 {[%emt 0:00:00]} 2. Nf3 {[%emt 0:00:00]} Nc6 {[%emt 0:00:00]} 3. c4 {[%emt 0:00:34]} Nd4 {[%emt 0:10:03]} 4. Nxd4 {[%emt 0:07:40]} cxd4 {[%emt 0:00:54]} 5. g3 {[%emt 0:01:29]} g6 {[%emt 0:02:30]} 6. Bg2 {[%emt 0:00:32]} Bg7 {[%emt 0:00:11]} 7. d3 {[%emt 0:00:57]} d6 {[%emt 0:00:16]} 8. O-O {[%emt 0:00:41]} e5 {[%emt 0:05:11]} 9. f4 {[%emt 0:10:21]} Ne7 {[%emt 0:01:20]} 10. f5 {[%emt 0:15:48]} gxf5 {[%emt 0:17:51]} 11. Qh5 {[%emt 0:18:53]} f4 {[%emt 0:06:05]} 12. gxf4 {[%emt 0:01:17]} exf4 {[%emt 0:00:32]} 13. Bxf4 {[%emt 0:00:46]} Ng6 {[%emt 0:03:54]} 14. Nd2 {[%emt 0:03:25]} Be6 {[%emt 0:05:05]} 15. Bh3 {[%emt 0:06:40]} Bxh3 {[%emt 0:11:05]} 16. Qxh3 {[%emt 0:00:13]} Be5 {[%emt 0:00:15]} 17. Bxe5 {[%emt 0:05:07]} dxe5 {[%emt 0:00:24]} 18. Kh1 {[%emt 0:06:51]} Qc8 {[%emt 0:06:56]} 19. Qh5 {[%emt 0:03:24]} Qe6 {[%emt 0:05:34]} 20. Nf3 {[%emt 0:01:19]} f6 {[%emt 0:00:57]} 21. Ng1 {[%emt 0:03:05]} O-O-O {[%emt 0:01:47]} 22. Ne2 {[%emt 0:00:10]} Rd7 {[%emt 0:04:56]} 23. Rf2 {[%emt 0:01:50]} Rf7 {[%emt 0:01:25]} 24. Raf1 {[%emt 0:02:08]} Rg8 {[%emt 0:02:07]} 25. Rf5 {[%emt 0:05:54]} Rgf8 {[%emt 0:01:47]} 26. Ng3 {[%emt 0:02:59]} Kc7 {[%emt 0:04:15]} 27. Qh6 {[%emt 0:00:26]} Nf4 {[%emt 0:04:42]} 28. R1xf4 {[%emt 0:00:37]} exf4 {[%emt 0:00:05]} 29. Qxf4+ {[%emt 0:00:14]} Kb6 {[%emt 0:00:08]} 30. Rb5+ {[%emt 0:00:36]} Ka6 {[%emt 0:00:23]} 31. Nf5 {[%emt 0:00:54]} Rd7 {[%emt 0:00:39]} 32. b4 {[%emt 0:00:34]} b6 {[%emt 0:00:55]} 33. a4 {[%emt 0:00:19]} Qe8 {[%emt 0:02:05]} 34. Nd6 {[%emt 0:00:39]} Qg6 {[%emt 0:00:36]} 35. Rd5 {[%emt 0:00:34]} Rg8 {[%emt 0:01:03]} 36. b5+ {[%emt 0:00:31]} Ka5 {[%emt 0:00:04]} 37. Qd2+ {[%emt 0:00:25]} Kxa4 {[%emt 0:00:06]} 38. Qa2+ {[%emt 0:00:32]} Kb4 {[%emt 0:00:06]} 39. Qb2+ {[%emt 0:00:29]} Ka4 {[%emt 0:00:06]} 40. Qa2+ {[%emt 0:00:00]} 1/2-1/2

[Event "EYCC Open-U16 2019"]
[Site "Bratislava"]
[Date "2019.08.09"]
[Round "8.4"]
[White "Teclaf, Pawel"]
[Black "Juksta, Karolis"]
[Result "1/2-1/2"]
[ECO "C02"]
[WhiteElo "2454"]
[BlackElo "2261"]
[Annotator "ChessBase"]
[PlyCount "81"]
[EventDate "2019.08.02"]
[EventType "swiss"]
[EventCountry "SVK"]
[SourceTitle "playchess.com"]
[Source "ChessBase"]
[SourceQuality "1"]
[TimeControl "40/5400+30:1800+30"]

1. e4 {[%emt 0:00:00]} e6 {[%emt 0:00:00]} 2. d4 {[%emt 0:00:00]} d5 {[%emt 0:00:00]} 3. e5 {[%emt 0:00:00]} c5 {[%emt 0:00:00]} 4. c3 {[%emt 0:00:00]} Qb6 {[%emt 0:00:00]} 5. Nf3 {[%emt 0:00:00]} Nc6 {[%emt 0:00:00]} 6. Be2 {[%emt 0:00:09]} cxd4 {[%emt 0:00:15]} 7. cxd4 {[%emt 0:00:05]} Nh6 {[%emt 0:00:04]} 8. Bxh6 {[%emt 0:00:08]} Qxb2 {[%emt 0:00:09]} 9. Nbd2 {[%emt 0:00:02]} gxh6 {[%emt 0:00:16]} 10. Nb3 {[%emt 0:00:11]} Bg7 {[%emt 0:09:56]} 11. O-O {[%emt 0:02:42]} O-O {[%emt 0:08:29]} 12. a3 {[%emt 0:07:04]} Qc3 {[%emt 0:10:52]} 13. Rc1 {[%emt 0:04:58]} Qb2 {[%emt 0:00:13]} 14. Ra1 {[%emt 0:00:01]} Qc3 {[%emt 0:00:19]} 15. Qb1 {[%emt 0:13:21]} Na5 {[%emt 0:00:31]} 16. Nc5 {[%emt 0:15:35]} Nc4 {[%emt 0:12:17]} 17. Bxc4 {[%emt 0:09:58]} dxc4 {[%emt 0:01:16]} 18. Rc1 {[%emt 0:03:02]} Qa5 {[%emt 0:00:10]} 19. Rxc4 {[%emt 0:00:40]} b6 {[%emt 0:04:52]} 20. Ra4 {[%emt 0:02:22]} Qc3 {[%emt 0:00:26]} 21. Ne4 {[%emt 0:01:39]} Qc6 {[%emt 0:03:35]} 22. Rb4 {[%emt 0:01:07]} Bb7 {[%emt 0:03:33]} 23. Nd6 {[%emt 0:01:45]} Qd7 {[%emt 0:02:26]} 24. Nxb7 {[%emt 0:03:55]} Qxb7 {[%emt 0:00:06]} 25. a4 {[%emt 0:01:05]} Qc7 {[%emt 0:05:25]} 26. Qa2 {[%emt 0:09:00]} Rfd8 {[%emt 0:08:21]} 27. a5 {[%emt 0:02:10]} bxa5 {[%emt 0:07:19]} 28. Rb5 {[%emt 0:03:18]} Bf8 {[%emt 0:04:43]} 29. Rxa5 {[%emt 0:00:24]} Rd7 {[%emt 0:00:53]} 30. h3 {[%emt 0:02:05]} Be7 {[%emt 0:04:08]} 31. Qd2 {[%emt 0:03:50]} Kg7 {[%emt 0:00:28]} 32. Qe3 {[%emt 0:06:29]} Qb7 {[%emt 0:02:46]} 33. Nh2 {[%emt 0:02:31]} Rd5 {[%emt 0:04:03]} 34. Ng4 {[%emt 0:02:14]} Bg5 {[%emt 0:01:01]} 35. f4 {[%emt 0:01:00]} Rxa5 {[%emt 0:04:21]} 36. Rxa5 {[%emt 0:00:06]} Bh4 {[%emt 0:01:54]} 37. f5 {[%emt 0:02:49]} Qb1+ {[%emt 0:02:18]} 38. Kh2 {[%emt 0:00:01]} Bg5 {[%emt 0:00:42]} 39. Qf3 {[%emt 0:00:12]} Qxf5 {[%emt 0:00:43]} 40. Qxa8 {[%emt 0:00:00]} Qf4+ {[%emt 0:00:00]} 41. Kg1 {[%emt 0:06:06]} 1/2-1/2

[Event "EYCC Open-U16 2019"]
[Site "Bratislava"]
[Date "2019.08.09"]
[Round "8.5"]
[White "Milosevic, Milos"]
[Black "Subelj, Jan"]
[Result "0-1"]
[ECO "C49"]
[WhiteElo "2312"]
[BlackElo "2425"]
[Annotator "NA"]
[PlyCount "70"]
[EventDate "2019.08.02"]
[EventType "swiss"]
[EventCountry "SVK"]
[SourceTitle "playchess.com"]
[Source "ChessBase"]
[SourceQuality "1"]
[TimeControl "40/5400+30:1800+30"]

1. e4 {[%emt 0:00:00]} e5 {[%emt 0:00:00]} 2. Nf3 {[%emt 0:00:00]} Nc6 {[%emt 0:00:12]} 3. Nc3 {[%emt 0:00:00]} Nf6 {[%emt 0:00:34]} 4. Bb5 {[%emt 0:00:00]} Bb4 {[%emt 0:01:02]} 5. O-O {[%emt 0:00:03]} O-O {[%emt 0:01:01]} 6. d3 {[%emt 0:00:04]} Bxc3 {[%emt 0:00:31]} 7. bxc3 {[%emt 0:00:03]} d6 {[%emt 0:00:18]} 8. Re1 {[%emt 0:00:42]} a6 {[%emt 0:07:24]} 9. Bxc6 {[%emt 0:12:10]} bxc6 {[%emt 0:00:05]} 10. h3 {[%emt 0:03:16]} h6 {[%emt 0:10:57]} 11. Nd2 {[%emt 0:15:35]} Nd7 {[%emt 0:15:33]} 12. Nc4 {[%emt 0:10:12]} Nb6 {[%emt 0:03:52]} 13. Ne3 {[%emt 0:07:04]} f5 {[%emt 0:18:04]} 14. exf5 {[%emt 0:04:55]} Bxf5 {[%emt 0:01:26]} 15. Nxf5 {[%emt 0:00:04]} Rxf5 {[%emt 0:00:06]} 16. c4 {[%emt 0:04:51]} Qf6 {[%emt 0:01:37]} 17. Qe2 {[%emt 0:09:09]} Rf8 {[%emt 0:04:28]} 18. Rf1 {[%emt 0:04:05]} d5 {[%emt 0:00:46]} 19. cxd5 {[%emt 0:02:28]} cxd5 {[%emt 0:00:08]} 20. Ba3 {[%emt 0:03:42]} Rf7 {[%emt 0:01:32]} 21. c4 {[%emt 0:00:48]} dxc4 {[%emt 0:07:01]} 22. dxc4 {[%emt 0:00:06]} Qe6 {[%emt 0:00:08]} 23. Rac1 {[%emt 0:08:21]} Rg5 {[%emt 0:02:00]} 24. Rc3 {[%emt 0:02:18]} e4 {[%emt 0:02:31]} 25. Re1 {[%emt 0:03:29]} Rgf5 {[%emt 0:07:06]} 26. f3 {[%emt 0:05:34]} Qf6 {[%emt 0:01:29]} 27. Bb2 {[%emt 0:03:16]} Na4 {[%emt 0:00:14]} 28. Rb3 {[%emt 0:00:07]} Nxb2 {[%emt 0:00:42]} 29. Qxb2 {[%emt 0:00:25]} exf3 {[%emt 0:00:22]} 30. gxf3 {[%emt 0:00:11]} Qh4 {[%emt 0:02:51]} 31. Re8+ {[%emt 0:01:01]} Kh7 {[%emt 0:00:08]} 32. Kh2 {[%emt 0:00:43]} Rxf3 {[%emt 0:01:17]} 33. Qc2+ {[%emt 0:00:48]} g6 {[%emt 0:00:14]} 34. Rxf3 {[%emt 0:00:04]} Rxf3 {[%emt 0:00:02]} 35. Kg1 {[%emt 0:00:21]} Rg3+ {[%emt 0:00:33]} 0-1

[Event "EYCC Open-U16 2019"]
[Site "Bratislava"]
[Date "2019.08.09"]
[Round "8.6"]
[White "Tsoi, Dmitry"]
[Black "Stoyanov, Tsvetan"]
[Result "1-0"]
[ECO "A03"]
[WhiteElo "2314"]
[BlackElo "2387"]
[Annotator "NA"]
[PlyCount "233"]
[EventDate "2019.08.02"]
[EventType "swiss"]
[EventCountry "SVK"]
[SourceTitle "playchess.com"]
[Source "ChessBase"]
[SourceQuality "1"]
[TimeControl "40/5400+30:1800+30"]

1. f4 {[%emt 0:00:00]} d5 {[%emt 0:00:00]} 2. Nf3 {[%emt 0:00:00]} Nf6 {[%emt 0:00:00]} 3. e3 {[%emt 0:00:00]} c5 {[%emt 0:00:37]} 4. d4 {[%emt 0:00:00]} Nc6 {[%emt 0:00:13]} 5. c3 {[%emt 0:00:00]} Bf5 {[%emt 0:00:30]} 6. Be2 {[%emt 0:00:18]} e6 {[%emt 0:00:42]} 7. O-O {[%emt 0:00:06]} Be7 {[%emt 0:00:43]} 8. Ne5 {[%emt 0:00:07]} O-O {[%emt 0:01:41]} 9. g4 {[%emt 0:02:07]} Bxb1 {[%emt 0:08:38]} 10. Rxb1 {[%emt 0:01:08]} Ne4 {[%emt 0:15:55]} 11. Bf3 {[%emt 0:20:59]} f5 {[%emt 0:10:43]} 12. Nd3 {[%emt 0:09:23]} Qb6 {[%emt 0:11:34]} 13. gxf5 {[%emt 0:25:11]} exf5 {[%emt 0:05:59]} 14. dxc5 {[%emt 0:10:43]} Bxc5 {[%emt 0:04:00]} 15. Re1 {[%emt 0:01:55]} Rae8 {[%emt 0:06:48]} 16. Qc2 {[%emt 0:04:32]} Bd6 {[%emt 0:06:19]} 17. Re2 {[%emt 0:01:58]} Rf6 {[%emt 0:07:48]} 18. Bd2 {[%emt 0:00:49]} Rh6 {[%emt 0:03:29]} 19. Rd1 {[%emt 0:05:36]} Ree6 {[%emt 0:02:56]} 20. Bc1 {[%emt 0:00:17]} Reg6+ {[%emt 0:01:22]} 21. Rg2 {[%emt 0:00:13]} Rxg2+ {[%emt 0:03:04]} 22. Bxg2 {[%emt 0:00:04]} Kh8 {[%emt 0:03:51]} 23. Nf2 {[%emt 0:08:51]} Ne7 {[%emt 0:02:02]} 24. Qa4 {[%emt 0:02:59]} Bxf4 {[%emt 0:01:59]} 25. Qe8+ Ng8 26. Bxe4 {[%emt 0:04:09]} Bxh2+ {[%emt 0:00:45]} 27. Kg2 {[%emt 0:00:45]} fxe4 {[%emt 0:00:13]} 28. Rxd5 {[%emt 0:00:29]} Bc7 {[%emt 0:00:32]} 29. Nxe4 {[%emt 0:01:02]} Rh2+ {[%emt 0:01:04]} 30. Kf3 {[%emt 0:00:31]} h6 {[%emt 0:00:56]} 31. c4 {[%emt 0:00:37]} Rc2 {[%emt 0:00:29]} 32. Rb5 {[%emt 0:00:34]} Qc6 {[%emt 0:00:27]} 33. Qxc6 {[%emt 0:00:14]} bxc6 {[%emt 0:00:00]} 34. Rb7 {[%emt 0:00:00]} Be5 {[%emt 0:00:55]} 35. Bd2 {[%emt 0:00:13]} Bxb2 {[%emt 0:00:40]} 36. Ke2 {[%emt 0:00:49]} Ba1 {[%emt 0:00:31]} 37. Rxa7 {[%emt 0:00:10]} Rb2 {[%emt 0:00:25]} 38. Ra6 {[%emt 0:00:32]} h5 {[%emt 0:00:27]} 39. Kd3 {[%emt 0:00:19]} h4 {[%emt 0:00:20]} 40. Ra5 {[%emt 0:00:00]} Nh6 {[%emt 0:00:00]} 41. Bc3 {[%emt 0:10:48]} Rb1 {[%emt 0:01:17]} 42. Rh5 {[%emt 0:00:04]} Bxc3 {[%emt 0:00:38]} 43. Kxc3 {[%emt 0:00:13]} Ra1 {[%emt 0:17:24]} 44. Kb2 {[%emt 0:03:51]} Re1 {[%emt 0:00:48]} 45. Rxh4 {[%emt 0:00:08]} Rxe3 {[%emt 0:00:04]} 46. a4 {[%emt 0:00:19]} Rd3 {[%emt 0:01:17]} 47. a5 {[%emt 0:00:57]} Rd8 {[%emt 0:00:49]} 48. Kc3 {[%emt 0:00:42]} Kg8 {[%emt 0:00:39]} 49. Rh5 {[%emt 0:00:22]} Nf7 {[%emt 0:01:23]} 50. Rc5 {[%emt 0:02:42]} Ra8 {[%emt 0:00:42]} 51. Kb4 {[%emt 0:04:42]} Nd8 {[%emt 0:00:08]} 52. Nd6 {[%emt 0:00:26]} Ra6 {[%emt 0:02:32]} 53. Ka4 {[%emt 0:03:28]} Nf7 {[%emt 0:02:28]} 54. Nf5 {[%emt 0:02:40]} Nd8 {[%emt 0:00:54]} 55. Re5 {[%emt 0:00:48]} Nb7 {[%emt 0:00:25]} 56. Nd4 {[%emt 0:03:13]} Kf7 {[%emt 0:00:21]} 57. Nb3 {[%emt 0:00:46]} Kf6 {[%emt 0:01:30]} 58. Re1 {[%emt 0:00:05]} g5 {[%emt 0:00:12]} 59. Kb4 {[%emt 0:00:52]} g4 {[%emt 0:02:55]} 60. Re4 {[%emt 0:00:51]} Kf5 {[%emt 0:00:57]} 61. Re7 {[%emt 0:00:15]} Nd6 {[%emt 0:00:13]} 62. Nc5 {[%emt 0:02:52]} Ra8 {[%emt 0:00:05]} 63. Nd3 {[%emt 0:01:34]} Nxc4 {[%emt 0:01:01]} 64. Kxc4 {[%emt 0:00:07]} Rxa5 {[%emt 0:00:01]} 65. Rf7+ {[%emt 0:00:19]} Kg5 {[%emt 0:00:16]} 66. Kd4 {[%emt 0:00:16]} g3 {[%emt 0:01:04]} 67. Ke4 {[%emt 0:01:46]} Ra4+ {[%emt 0:01:04]} 68. Kf3 {[%emt 0:00:07]} Ra3 {[%emt 0:00:15]} 69. Ke2 {[%emt 0:01:00]} g2 {[%emt 0:01:51]} 70. Rg7+ {[%emt 0:00:06]} Kf6 {[%emt 0:01:32]} 71. Rg8 {[%emt 0:00:13]} Ra1 {[%emt 0:00:26]} 72. Ne1 {[%emt 0:00:12]} Ra8 {[%emt 0:00:05]} 73. Rg3 {[%emt 0:00:37]} Ra3 {[%emt 0:00:09]} 74. Nf3 {[%emt 0:00:23]} Ra2+ {[%emt 0:00:51]} 75. Nd2 {[%emt 0:00:07]} Ke5 {[%emt 0:00:12]} 76. Rxg2 {[%emt 0:00:06]} Kd4 {[%emt 0:00:16]} 77. Rg4+ {[%emt 0:00:07]} Kd5 {[%emt 0:00:08]} 78. Kd3 {[%emt 0:00:06]} Ra3+ {[%emt 0:00:02]} 79. Kc2 {[%emt 0:00:01]} Rh3 {[%emt 0:00:39]} 80. Rg5+ {[%emt 0:00:40]} Ke6 {[%emt 0:00:40]} 81. Ne4 {[%emt 0:00:08]} Re3 {[%emt 0:00:20]} 82. Nc3 {[%emt 0:00:33]} Kd6 {[%emt 0:00:16]} 83. Kb3 {[%emt 0:00:26]} Rf3 {[%emt 0:00:11]} 84. Kc4 {[%emt 0:00:12]} Rf4+ {[%emt 0:00:01]} 85. Kd3 {[%emt 0:00:01]} Rb4 {[%emt 0:00:46]} 86. Ne2 {[%emt 0:00:38]} Rb5 {[%emt 0:01:40]} 87. Rg6+ {[%emt 0:00:33]} Kc5 {[%emt 0:01:24]} 88. Nd4 {[%emt 0:00:13]} Rb6 {[%emt 0:00:00]} 89. Kc3 {[%emt 0:00:14]} Ra6 {[%emt 0:00:27]} 90. Nb3+ {[%emt 0:00:36]} Kd5 {[%emt 0:00:55]} 91. Na5 {[%emt 0:00:39]} Rb6 {[%emt 0:01:24]} 92. Rg5+ {[%emt 0:00:32]} Ke6 {[%emt 0:00:21]} 93. Rh5 {[%emt 0:00:24]} Rb5 {[%emt 0:00:33]} 94. Rh6+ Kd7 95. Nc4 {[%emt 0:01:00]} Rc5 {[%emt 0:00:17]} 96. Kd4 {[%emt 0:00:52]} Rd5+ {[%emt 0:00:03]} 97. Ke4 {[%emt 0:00:04]} Rc5 {[%emt 0:00:55]} 98. Kd4 {[%emt 0:02:18]} Rd5+ {[%emt 0:00:01]} 99. Kc3 {[%emt 0:00:00]} Rc5 {[%emt 0:00:16]} 100. Rg6 {[%emt 0:00:04]} Rh5 {[%emt 0:00:41]} 101. Nd2 {[%emt 0:01:58]} Rc5+ {[%emt 0:00:23]} 102. Kb4 {[%emt 0:00:05]} Rb5+ {[%emt 0:00:06]} 103. Kc4 {[%emt 0:00:03]} Kc7 {[%emt 0:01:06]} 104. Ne4 {[%emt 0:00:32]} Rh5 {[%emt 0:00:14]} 105. Nf6 {[%emt 0:00:22]} Rf5 {[%emt 0:00:21]} 106. Rg7+ {[%emt 0:00:09]} Kd8 {[%emt 0:02:36]} 107. Ne4 {[%emt 0:01:34]} Rd5 {[%emt 0:00:51]} 108. Nc5 {[%emt 0:00:19]} Kc8 {[%emt 0:00:16]} 109. Ne6 {[%emt 0:00:29]} Rd6 {[%emt 0:00:17]} 110. Rc7+ {[%emt 0:00:12]} Kb8 {[%emt 0:00:01]} 111. Re7 {[%emt 0:00:01]} Rd5 {[%emt 0:00:25]} 112. Nd4 {[%emt 0:00:07]} Rd6 {[%emt 0:00:09]} 113. Kc5 {[%emt 0:00:07]} Rd5+ {[%emt 0:01:27]} 114. Kb6 {[%emt 0:00:05]} Kc8 {[%emt 0:00:05]} 115. Ne6 {[%emt 0:00:28]} Re5 {[%emt 0:01:12]} 116. Rc7+ {[%emt 0:00:33]} Kb8 {[%emt 0:00:01]} 117. Nd4 {[%emt 0:00:01]} 1-0

[Event "EYCC Open-U16 2019"]
[Site "Bratislava"]
[Date "2019.08.09"]
[Round "8.7"]
[White "Sahidi, Samir"]
[Black "Sargsyan, Tigran R."]
[Result "1-0"]
[ECO "B12"]
[WhiteElo "2369"]
[BlackElo "2314"]
[Annotator "NA"]
[PlyCount "102"]
[EventDate "2019.08.02"]
[EventType "swiss"]
[EventCountry "SVK"]
[SourceTitle "playchess.com"]
[Source "ChessBase"]
[SourceQuality "1"]
[TimeControl "40/5400+30:1800+30"]

1. e4 {[%emt 0:00:12]} c6 {[%emt 0:00:00]} 2. d4 {[%emt 0:01:20]} d5 {[%emt 0:00:11]} 3. e5 {[%emt 0:04:00]} Bf5 {[%emt 0:00:08]} 4. Nf3 {[%emt 0:00:43]} e6 {[%emt 0:00:30]} 5. Be2 {[%emt 0:03:16]} Ne7 {[%emt 0:00:30]} 6. O-O {[%emt 0:01:46]} Ng6 {[%emt 0:02:06]} 7. Re1 {[%emt 0:02:05]} Nd7 {[%emt 0:04:59]} 8. h3 {[%emt 0:11:17]} h5 {[%emt 0:02:09]} 9. Bd3 {[%emt 0:02:10]} Bxd3 {[%emt 0:01:41]} 10. Qxd3 {[%emt 0:00:21]} Qb6 {[%emt 0:09:19]} 11. c3 {[%emt 0:09:27]} Be7 {[%emt 0:06:50]} 12. a3 {[%emt 0:07:21]} c5 {[%emt 0:05:29]} 13. Qc2 {[%emt 0:10:39]} Rc8 {[%emt 0:05:59]} 14. Qa4 {[%emt 0:03:01]} cxd4 {[%emt 0:03:06]} 15. cxd4 {[%emt 0:01:00]} Nh4 {[%emt 0:04:44]} 16. Nxh4 {[%emt 0:03:12]} Rc4 {[%emt 0:01:39]} 17. b4 {[%emt 0:03:36]} Qxd4 {[%emt 0:19:23]} 18. Ra2 {[%emt 0:00:19]} Qxh4 {[%emt 0:08:27]} 19. Nd2 {[%emt 0:02:20]} Rc7 {[%emt 0:04:33]} 20. Rc2 {[%emt 0:03:46]} b5 {[%emt 0:05:01]} 21. Qb3 {[%emt 0:00:37]} Bd8 {[%emt 0:09:48]} 22. Nf3 {[%emt 0:01:29]} Qe7 {[%emt 0:00:13]} 23. Bg5 {[%emt 0:00:56]} f6 {[%emt 0:00:49]} 24. exf6 {[%emt 0:05:03]} gxf6 {[%emt 0:00:01]} 25. Rce2 {[%emt 0:01:26]} Nf8 {[%emt 0:01:01]} 26. Nd4 {[%emt 0:00:36]} Kf7 {[%emt 0:01:49]} 27. Nxe6 {[%emt 0:02:06]} Nxe6 {[%emt 0:00:10]} 28. Rxe6 {[%emt 0:00:19]} Qxe6 {[%emt 0:00:16]} 29. Rxe6 {[%emt 0:00:05]} Kxe6 {[%emt 0:00:01]} 30. Bf4 {[%emt 0:03:24]} Rc4 {[%emt 0:00:13]} 31. Be3 {[%emt 0:00:59]} Bc7 {[%emt 0:01:20]} 32. g3 {[%emt 0:00:59]} Be5 {[%emt 0:00:50]} 33. a4 {[%emt 0:03:14]} h4 {[%emt 0:01:12]} 34. g4 {[%emt 0:01:54]} a6 {[%emt 0:00:55]} 35. axb5 {[%emt 0:00:29]} axb5 {[%emt 0:00:00]} 36. Qd3 {[%emt 0:01:03]} Rxb4 {[%emt 0:01:33]} 37. Bc5 {[%emt 0:00:24]} Re4 {[%emt 0:00:40]} 38. Qxb5 {[%emt 0:00:28]} Re1+ {[%emt 0:00:33]} 39. Kg2 {[%emt 0:00:06]} Rb8 {[%emt 0:00:47]} 40. Qc6+ {[%emt 0:00:00]} Kf7 {[%emt 0:00:00]} 41. Qxd5+ {[%emt 0:01:33]} Kg6 {[%emt 0:03:54]} 42. Be3 {[%emt 0:06:01]} Kg7 {[%emt 0:08:13]} 43. Bh6+ {[%emt 0:05:08]} Kxh6 {[%emt 0:04:08]} 44. Qd2+ {[%emt 0:00:07]} Kg6 {[%emt 0:00:14]} 45. Qxe1 {[%emt 0:00:05]} Rb2 {[%emt 0:02:06]} 46. Qe4+ {[%emt 0:00:18]} Kg7 {[%emt 0:00:32]} 47. g5 {[%emt 0:02:31]} Rb6 {[%emt 0:02:56]} 48. f4 {[%emt 0:03:19]} Bb2 {[%emt 0:00:44]} 49. Kf3 {[%emt 0:01:37]} fxg5 {[%emt 0:04:03]} 50. fxg5 {[%emt 0:03:00]} Rb8 {[%emt 0:02:15]} 51. Qe7+ {[%emt 0:01:02]} Kg8 {[%emt 0:00:49]} 1-0

[Event "EYCC Open-U16 2019"]
[Site "Bratislava"]
[Date "2019.08.09"]
[Round "8.8"]
[White "Alonso Garcia, Aaron"]
[Black "Globus, Or"]
[Result "0-1"]
[ECO "B26"]
[WhiteElo "2248"]
[BlackElo "2352"]
[Annotator "NA"]
[PlyCount "84"]
[EventDate "2019.08.02"]
[EventType "swiss"]
[EventCountry "SVK"]
[SourceTitle "playchess.com"]
[Source "ChessBase"]
[SourceQuality "1"]
[TimeControl "40/5400+30:1800+30"]

1. e4 {[%emt 0:00:01]} c5 {[%emt 0:00:00]} 2. Nc3 {[%emt 0:00:48]} d6 {[%emt 0:00:29]} 3. g3 {[%emt 0:02:30]} Nc6 {[%emt 0:00:07]} 4. Bg2 {[%emt 0:00:03]} g6 {[%emt 0:00:24]} 5. d3 {[%emt 0:00:05]} Bg7 {[%emt 0:00:13]} 6. Be3 {[%emt 0:00:05]} Rb8 {[%emt 0:00:37]} 7. Qd2 {[%emt 0:00:06]} b5 {[%emt 0:00:11]} 8. Nge2 {[%emt 0:00:04]} b4 {[%emt 0:00:36]} 9. Nd1 {[%emt 0:00:04]} Nd4 {[%emt 0:01:34]} 10. O-O {[%emt 0:01:02]} e5 {[%emt 0:00:28]} 11. Nc1 {[%emt 0:07:50]} Ne7 {[%emt 0:01:06]} 12. f4 {[%emt 0:08:44]} exf4 {[%emt 0:00:10]} 13. Bxf4 {[%emt 0:03:04]} h6 {[%emt 0:01:13]} 14. Nf2 {[%emt 0:06:45]} Ne6 {[%emt 0:09:50]} 15. Be3 {[%emt 0:03:44]} Bxb2 {[%emt 0:05:28]} 16. Rb1 {[%emt 0:00:01]} Bc3 {[%emt 0:00:59]} 17. Qd1 {[%emt 0:01:23]} h5 {[%emt 0:11:23]} 18. Ne2 {[%emt 0:04:05]} Bg7 {[%emt 0:01:37]} 19. c3 {[%emt 0:08:32]} O-O {[%emt 0:09:14]} 20. a3 {[%emt 0:12:46]} a5 {[%emt 0:05:28]} 21. axb4 {[%emt 0:02:15]} axb4 {[%emt 0:00:26]} 22. cxb4 {[%emt 0:00:38]} cxb4 {[%emt 0:01:16]} 23. Qd2 {[%emt 0:00:24]} b3 {[%emt 0:01:08]} 24. Bh6 {[%emt 0:02:51]} Bxh6 {[%emt 0:09:59]} 25. Qxh6 {[%emt 0:00:02]} Qb6 {[%emt 0:01:48]} 26. Kh1 {[%emt 0:02:23]} Nd4 {[%emt 0:03:14]} 27. Nf4 {[%emt 0:03:23]} Qc5 {[%emt 0:03:34]} 28. e5 {[%emt 0:07:25]} Ndf5 {[%emt 0:09:40]} 29. Qg5 {[%emt 0:00:01]} Qxe5 {[%emt 0:01:36]} 30. N4h3 {[%emt 0:14:19]} Ne3 {[%emt 0:07:08]} 31. Rfe1 {[%emt 0:00:23]} Bxh3 {[%emt 0:02:31]} 32. Nxh3 {[%emt 0:00:01]} Qxg5 {[%emt 0:00:57]} 33. Nxg5 {[%emt 0:00:01]} N7f5 {[%emt 0:00:33]} 34. Bh3 {[%emt 0:03:59]} Rfc8 {[%emt 0:02:33]} 35. Ne4 {[%emt 0:06:32]} Rc2 {[%emt 0:00:59]} 36. Rec1 {[%emt 0:00:15]} b2 {[%emt 0:04:08]} 37. Re1 {[%emt 0:00:09]} Kg7 {[%emt 0:01:59]} 38. Kg1 {[%emt 0:00:18]} Nd4 {[%emt 0:01:14]} 39. Rxe3 {[%emt 0:01:46]} Rc1+ {[%emt 0:00:16]} 40. Re1 {[%emt 0:00:00]} Rxe1+ {[%emt 0:00:00]} 41. Rxe1 {[%emt 0:00:01]} Nf3+ {[%emt 0:00:41]} 42. Kf2 {[%emt 0:00:01]} Nxe1 {[%emt 0:00:07]} 0-1